Cogmind - Beta 14 @@@ ROGUE MODE // 2024.09.02 @ 15:32:43 Player: Coronach Result: Self-destructed Performance ------------- Evolutions (0) 0 Regions Visited (4) 800 Robots Destroyed (11) 55 Value Destroyed (174) 174 Prototype IDs (0) 0 Alien Tech Used (0) 0 Bonus (0) 0 TOTAL SCORE: 1029 Bonus ------- None Cogmind --------- Core Integrity 151/250 Matter 300/300 Energy 125/125 System Corruption 0% Temperature Cool (0) Movement Rolling (155) Ox5 Location -9/Mines Parts ------- > --- POWER (1) -------- Light Ion Engine > --- PROPULSION (2) --- Light Treads Wheel > --- UTILITY (2) ------ High-capacity Storage Unit Seismic Detector > --- WEAPON (2) ------- Gauss Rifle Rocket Launcher > --- INVENTORY (20) --- Ion Engine Light Ion Engine Gravmag System Medium Storage Unit Huge Storage Unit Medium Matter Pod (100) Medium Matter Pod (100) High-capacity Matter Pod (200) High-capacity Matter Pod (200) High-capacity Matter Pod (200) Transport Network Coupler Transport Network Coupler Targeting Computer Improved Melee Analysis Suite Makeshift Hacking Suite Lightning Gun Medium Laser Small Laser Assault Rifle Peak State ------------ > --- POWER ------------ Light Ion Engine > --- PROPULSION ------- Light Treads Wheel > --- UTILITY ---------- High-capacity Storage Unit Seismic Detector > --- WEAPON ----------- Gauss Rifle Rocket Launcher > --- INVENTORY -------- Ion Engine Light Ion Engine Gravmag System Medium Storage Unit Huge Storage Unit Medium Matter Pod Medium Matter Pod High-capacity Matter Pod High-capacity Matter Pod High-capacity Matter Pod Transport Network Coupler Transport Network Coupler Targeting Computer Improved Melee Analysis Suite Makeshift Hacking Suite Lightning Gun Medium Laser Small Laser Assault Rifle [Rating: 14] Favorites ----------- Power Light Ion Engine Engine Light Ion Engine Propulsion Light Treads Treads Light Treads Leg Aluminum Leg Wheel Wheel Utility Seismic Detector Device Seismic Detector Storage High-capacity Storage Unit Weapon Rocket Launcher Energy Gun Medium Laser Ballistic Gun Gauss Rifle Launcher Rocket Launcher Special Weapon Mining Laser Build | -11 -10 -10 -10 -9 ------- Run | Yrd Mat Min Exi Min Slots Evolved . | . . . . . Power . | . . . . . Propulsion . | . . . . . Utility . | . . . . . Weapon . | . . . . . Parts Attached 14 | 4 3 5 2 . Power . | . . . . . Engine . | . . . . . Core . | . . . . . Reactor . | . . . . . Propulsion 3 | 2 . 1 . . Treads 2 | 2 . . . . Leg . | . . . . . Wheel 1 | . . 1 . . Hover . | . . . . . Flight . | . . . . . Utility 2 | 1 . 1 . . Device 1 | 1 . . . . Storage 1 | . . 1 . . Processor . | . . . . . Hackware . | . . . . . Protection . | . . . . . Artifact . | . . . . . Weapon 9 | 1 3 3 2 . Energy Gun 2 | . 1 . 1 . Energy Cannon . | . . . . . Ballistic Gun 2 | 1 . . 1 . Ballistic Cannon . | . . . . . Launcher 2 | . . 2 . . Special Weapon 3 | . 2 1 . . Impact Weapon . | . . . . . Slashing Weapon . | . . . . . Piercing Weapon . | . . . . . Special Melee Weapon . | . . . . . Unidentified Prototypes . | . . . . . Parts Lost 2 | . . 2 . . Power . | . . . . . Propulsion 1 | . . 1 . . Utility . | . . . . . Weapon 1 | . . 1 . . Highest Loss Streak 1 | . . 1 . . To Critical Strikes . | . . . . . Average Slot Usage (%) 89 | . 85 83 93 100 Engine 14 | . 14 14 14 14 Treads 19 | . 28 25 14 14 Wheel 8 | . . 2 14 14 Device 14 | . 14 14 14 14 Storage 10 | . . 9 14 14 Ballistic Gun 7 | . 14 . 7 14 Launcher 9 | . . 6 14 14 Special Weapon 4 | . 12 10 . . Peak Build Rating 14 | 6 6 7 13 14 Average Rating 8 | 5 6 6 9 13 On Entrance 7 | 6 6 6 7 13 Naked Turns . | . . . . . Heaviest Build 52 | 8 8 48 52 52 Greatest Support 40 | 40 40 40 20 10 Greatest Overweight (x) 5 | . . 4 5 5 Average Overweight (x) 2 | . . 1 4 5 Largest Inventory Capacity 20 | 5 5 20 20 20 Average Capacity 15 | 5 5 14 20 20 Most Carried 19 | 5 4 6 16 19 Average Carried 6 | 2 3 4 8 16 Final Capacity 20 | 5 5 20 20 20 Final Carried 19 | 3 4 4 16 19 Class Distribution -------------------- 86% | Mutant 13% | Commander-Mutant Dominant Class ---------------- Mutant | -10/Materials Mutant | -10/Mines Mutant | -10/Exiles Commander-Mutant | -9/Mines Resources | -11 -10 -10 -10 -9 ----------- Run | Yrd Mat Min Exi Min Matter Collected 548 | 249 13 143 143 . Remotely . | . . . . . Salvage Created 526 | 107 13 92 314 . Parts 27 | 4 1 15 7 . Haulers Intercepted . | . . . . . Recyclers Shooed 1 | 1 . . . . Parts Field Recycled . | . . . . . Retrieved Matter . | . . . . . Parts Self-Destructed . | . . . . . Prevented . | . . . . . Kills | -11 -10 -10 -10 -9 ------- Run | Yrd Mat Min Exi Min Combat Hostiles Destroyed 9 | . 1 8 . . Guns 1 | . 1 . . . AOE 8 | . . 8 . . Classes Destroyed 4 | 2 1 1 . . Tunneler 1 | 1 . . . . Recycler 1 | 1 . . . . Swarmer 7 | . 1 6 . . Grunt 2 | . . 2 . . Best Kill Streak 3 | 2 1 3 . . Combat Bots Only 3 | . 1 3 . . Max Kills in Single Turn 3 | 1 1 3 . . Gunslinging . | . . . . . Exploded 3 | . . 3 . . Melee . | . . . . . Uniques/NPCs Destroyed . | . . . . . Combat | -11 -10 -10 -10 -9 -------- Run | Yrd Mat Min Exi Min Hostile Shots Fired 39 | . 9 30 . . Missed 13 | . 4 9 . . Damage Taken 448 | . 38 366 . 44 Core 99 | . . 91 . 8 Absorbed by Shields . | . . . . . Core Remaining (%) 100 | 100 . . . . Volleys Fired 68 | 3 18 7 40 . Largest 2 | 2 2 1 1 . Hottest 120 | 70 120 33 50 . Shots Fired 75 | 6 22 7 40 . Gun 52 | 6 7 . 39 . Cannon . | . . . . . Launcher 8 | . . 7 1 . Special 15 | . 15 . . . Kinetic 30 | 3 4 . 23 . Thermal 37 | 3 18 . 16 . Explosive 8 | . . 7 1 . Electromagnetic . | . . . . . Robot Hit Streak 18 | 3 1 2 18 . Robot Miss Streak 3 | 1 3 1 1 . Penetration Max . | . . . . . Secondary Targets . | . . . . . Shots Hit Robots 46 | 4 2 3 37 . Core Hits 28 | 3 1 9 15 . Critical Kills 3 | . . . 3 . Critical Parts Destroyed . | . . . . . Critical Strikes 6 | 1 1 . 4 . Burn 3 | 1 1 . 1 . Destroy 3 | . . . 3 . Melee Attacks . | . . . . . Impact . | . . . . . Slashing . | . . . . . Piercing . | . . . . . Sneak Attacks . | . . . . . Combat Hostiles . | . . . . . Follow-up Attacks . | . . . . . Damage Inflicted 1118 | 47 25 417 629 . Guns 701 | 47 25 . 629 . Cannons . | . . . . . Explosions 417 | . . 417 . . Melee . | . . . . . Ramming . | . . . . . Kinetic 451 | 10 . . 441 . Thermal 250 | 37 25 . 188 . Explosive 417 | . . 417 . . Electromagnetic . | . . . . . Impact . | . . . . . Slashing . | . . . . . Piercing . | . . . . . Highest Corruption . | . . . . . Average Corruption . | . . . . . Corruption Purged . | . . . . . Corruption Blocked . | . . . . . Overload Shots . | . . . . . Overflow Damage 11 | . . 11 . . Projectiles . | . . . . . Explosions 11 | . . 11 . . Melee . | . . . . . Knockbacks . | . . . . . Impact . | . . . . . Kinetic . | . . . . . Secondary . | . . . . . Self-Inflicted Damage 113 | . . 113 . . Shots 3 | . . 3 . . Rammed 1 | . 1 . . . Targets Rammed 1 | . 1 . . . Kicked . | . . . . . Crushed . | . . . . . Highest Temperature 120 | 27 60 7 120 . Average Temperature 25 | 14 16 4 52 . Received Heat Transfer 123 | . . 123 . . Siege Activations . | . . . . . Robots Corrupted . | . . . . . Combat Hostiles . | . . . . . Parts Fried . | . . . . . Impact Corruptions . | . . . . . Robots Melted . | . . . . . Combat Hostiles . | . . . . . Parts Melted 2 | 1 1 . . . Heat Transferred 962 | 185 148 . 629 . Parts Sabotaged . | . . . . . Parts Stolen . | . . . . . Parts Stripped . | . . . . . Power Chain Reactions . | . . . . . Alert | -11 -10 -10 -10 -9 ------- Run | Yrd Mat Min Exi Min Peak Influence 198 | 10 55 198 . . Initial 21 | . 6 21 . . Average 65 | 5 10 124 . . Maximum Alert Level . | . . . . . Low Security (%) 100 | 100 100 100 . 100 Level 1 . | . . . . . Level 2 . | . . . . . Level 3 . | . . . . . Level 4 . | . . . . . Level 5 . | . . . . . High Security . | . . . . . Max Security . | . . . . . Squads Dispatched . | . . . . . Investigation . | . . . . . Extermination . | . . . . . Reinforcement . | . . . . . Assault . | . . . . . Garrison . | . . . . . Intercept . | . . . . . Searches Triggered . | . . . . . Construction Impeded . | . . . . . Haulers Reinforced . | . . . . . Active Scanning Responses . | . . . . . Cargo Convoy Interrupts . | . . . . . Stealth | -11 -10 -10 -10 -9 --------- Run | Yrd Mat Min Exi Min Distress Signals . | . . . . . Communications Jammed . | . . . . . Distress Signals . | . . . . . Times Spotted 14 | . 4 10 . . Peak Tracking Total 5 | . 3 5 . . Tactical Retreats 2 | . 1 1 . . Traps | -11 -10 -10 -10 -9 ------- Run | Yrd Mat Min Exi Min Traps Triggered . | . . . . . Indirectly . | . . . . . Trap Hack Attempts . | . . . . . Triggered . | . . . . . Disarmed . | . . . . . Reprogrammed . | . . . . . Reused . | . . . . . Traps Extracted . | . . . . . Installed . | . . . . . Triggered . | . . . . . Machines | -11 -10 -10 -10 -9 ---------- Run | Yrd Mat Min Exi Min Machines Disabled 1 | . . 1 . . Max in Single Turn 1 | . . 1 . . Machines Repaired . | . . . . . Machines Dismantled . | . . . . . Machines Sabotaged . | . . . . . Overloaded Fab Kills . | . . . . . Hacking | -11 -10 -10 -10 -9 --------- Run | Yrd Mat Min Exi Min Machines Accessed 7 | . 1 1 4 1 Terminals 2 | . 1 1 . . Fabricators . | . . . . . Repair Stations . | . . . . . Recycling Units . | . . . . . Scanalyzers . | . . . . . Garrison Access . | . . . . . Total Hacks 54 | . 3 1 49 1 Successful 52 | . 1 1 49 1 Failed 2 | . 2 . . . Catastrophic . | . . . . . Database Lockouts . | . . . . . Manual 4 | . 3 . 1 . Terminals 4 | . 3 1 . . Fabricators . | . . . . . Repair Stations . | . . . . . Recycling Units . | . . . . . Scanalyzers . | . . . . . Garrison Access . | . . . . . Terminal Hacks 51 | . . 1 49 1 Record 49 | . . . 49 . Open Door 1 | . . . . 1 Zone Layout 1 | . . 1 . . Fabricator Hacks . | . . . . . Repair Station Hacks . | . . . . . Recycling Unit Hacks . | . . . . . Scanalyzer . | . . . . . Garrison Access Hacks . | . . . . . Unauthorized Hacks 1 | . 1 . . . Terminals 1 | . 1 . . . Assimilate 1 | . 1 . . . Fabricators . | . . . . . Repair Stations . | . . . . . Recycling Units . | . . . . . Scanalyzers . | . . . . . Garrison Access . | . . . . . Data Cores Recovered . | . . . . . Used . | . . . . . Hacking Detections 1 | . 1 . . . Full Trace Events . | . . . . . Feedback Events . | . . . . . Feedback Blocked . | . . . . . Robot Schematics Acquired . | . . . . . Robots Built . | . . . . . Authchips . | . . . . . Time . | . . . . . Total Robot Build Rating . | . . . . . Part Schematics Acquired . | . . . . . Parts Built . | . . . . . Authchips . | . . . . . Time . | . . . . . Total Part Build Rating . | . . . . . Parts Repaired . | . . . . . Time . | . . . . . Parts Recycled . | . . . . . Recycled Matter . | . . . . . Retrieved Matter . | . . . . . Retrieved Components . | . . . . . Parts Scanalyzed . | . . . . . Part Schematics Acquired . | . . . . . Parts Damaged . | . . . . . Bothacking | -11 -10 -10 -10 -9 ------------ Run | Yrd Mat Min Exi Min Used RIF Installer . | . . . . . Robots Hacked . | . . . . . Non-combat . | . . . . . Combat . | . . . . . Robot Hacks Applied . | . . . . . Relay Couplers Released . | . . . . . Fabnet Peak Effective % . | . . . . . Robots Rewired 4 | . . . 4 . Allies Hacked . | . . . . . Hacks Repelled . | . . . . . Allies | -11 -10 -10 -10 -9 -------- Run | Yrd Mat Min Exi Min Total Allies 5 | . 1 . 4 . Largest Group 4 | . 1 . 4 4 Highest-Rated Group 45 | . 10 . 45 45 Highest-Rated Ally 21 | . 10 . 21 21 Total Orders 2 | . . . 2 . STAY 1 | . . . 1 . FOLLOW 1 | . . . 1 . Ally Attacks . | . . . . . Total Damage . | . . . . . Kills . | . . . . . Allies Corrupted . | . . . . . Allies Melted . | . . . . . Intel | -11 -10 -10 -10 -9 ------- Run | Yrd Mat Min Exi Min Robot Analysis Total . | . . . . . Derelict Logs Recovered . | . . . . . Drone Launches . | . . . . . Drone Recoveries . | . . . . . Exploration | -11 -10 -10 -10 -9 ------------- Run | Yrd Mat Min Exi Min Turns Passed 2604 | 34 534 568 1438 30 Spaces Moved 1467 | 11 270 289 880 17 Core . | . . . . . Treads 500 | 11 270 218 1 . Legs . | . . . . . Wheels 967 | . . 71 879 17 Hover . | . . . . . Flight . | . . . . . Fastest Speed 140 | 160 160 140 140 155 Average Speed 157 | 160 160 185 146 155 Slowest Speed 320 | 160 160 240 320 155 Overloaded Moves . | . . . . . Propulsion Burnouts . | . . . . . Robots Hopped . | . . . . . Cave-ins Triggered . | . . . . . Exploration Rate (%) 41 | 2 28 70 92 14 Regions Visited 4 Branch Regions 3 Pre-discovered Areas 1 | . . . 1 . Known Exits Taken . | . . . . . Unknown Exits Taken 4 | 1 1 1 1 . Scrap Searched 2 | . . 2 . . Spaces Dug 29 | . 14 11 4 . Terrain Destroyed 93 | . 14 75 4 . Melee . | . . . . . Projectile 14 | . 14 . . . AOE 79 | . . 75 4 . Terrain Rammed . | . . . . . Walls Destroyed . | . . . . . Machines Disabled . | . . . . . Actions | -11 -10 -10 -10 -9 --------- Run | Yrd Mat Min Exi Min Total 1662 | 24 318 314 986 20 Wait 43 | 1 26 10 6 . Move 1463 | 10 269 288 879 17 Hop . | . . . . . Pick Up 20 | 1 1 2 13 3 Fast Attach 2 | 1 . 1 . . Attach 6 | 3 . 2 1 . Detach 2 | 1 . 1 . . Swap 6 | . 3 2 1 . Drop 5 | 4 . 1 . . Fire 68 | 3 18 7 40 . Melee . | . . . . . Ram . | . . . . . Kick . | . . . . . Crush 1 | . 1 . . . Escape Stasis . | . . . . . Rewire 46 | . . . 46 . Trap . | . . . . . Miscellaneous . | . . . . . Route ------- -11/Scrapyard -10/Materials -10/Mines (discovered 3 exits: [*Mat x2] / *Exi) -10/Exiles (discovered 2 exits: *Min x2) -9/Mines History --------- Turn | Location | Event 7 | -11/Scrapyard | Discovered new exit (range 1) 35 | -11/Scrapyard | Entered Materials 312 | -10/Materials | Build established: Mutant 558 | -10/Materials | Discovered new exit (range 6) 569 | -10/Materials | Entered Mines 701 | -10/Mines | Received a Rocket Launcher from a helpful Derelict 707 | -10/Mines | Discovered new exit (range 7) 784 | -10/Mines | Discovered new exit (range 6) 1101 | -10/Mines | Found a hidden stash of uninstalled traps 1131 | -10/Mines | Deemed a non-threat by the Exiles lab entrance 1131 | -10/Mines | Discovered new exit (range 5) 1137 | -10/Mines | Entered Exiles 1137 | -10/Exiles | Found Exiles lab destroyed 1163 | -10/Exiles | Discovered new exit (range 14) 1417 | -10/Exiles | Learned location of Zion (-6) 1715 | -10/Exiles | Discovered new exit (range 14) 2555 | -10/Exiles | Build established: Commander-Mutant 2575 | -10/Exiles | Entered Mines 2575 | -9/Mines | Accompanied by 4 allies 2589 | -9/Mines | Met a Derelict who couldn't figure out how to use a Trap Extractor 2605 | -9/Mines | Self-destructed Last Messages --------------- Sealed Doors opened. 02589_ GX-U09(g): "So I found this thing but I have no idea how to use it. And who the hell trapped this place to begin with?!" 02589_ GX-U09(g): "I give up! Here you try, I'm outta here before something nasty happens..." 02589_ Tosses Imp. Trap Extractor to the ground. 02589_ GX-U09(g) triggered Proton Bomb Trap. 02589_ A bubble of electromagnetic force engulfs the area. 02589_ Proton Bomb Trap short circuited. 02589_ Blade Trap short circuited. 02589_ SHOP.Sys disabled. 02589_ Machine disabled. 02589_ Massive razor-sharp blades shoot up from within the floor. 02589_ A bubble of electromagnetic force engulfs the area. 02593_ Acquired Corrupted Imp. Melee Analysis Suite. 02593_ Commando 1a triggered EMP Trap. 02593_ A bubble of electromagnetic force engulfs the area. 02593_ Mercenary 1b destroyed. 02597_ Acquired Sml. Laser. 02599_ Acquired Corrupted Lightning Gun. Map ----- +----------------------------------------------------+ | | | | | | | | | | | | | | | | | | | | | ?????????????????????????????????????????????????? | | ?????????????????????????????????????????????????? | | ?????????????????????????????????????????????????? | | ?????????????????????????????????????????????????? | | ?????????????????????????????????????????????????? | | ?????????????????????????????????????????????????? | | ?????????????????????????????????????????????????? | | ?????????????????????????????????????????????????? | | ?????????????????????????????????????????????????? | | ?????????????????????????????????????????????????? | | ?????????????????????????????????????????????????? | | ?????????????????????????????????????????????????? | | ?????????????????????????????????????????????????? | | ????????????????????????########?????????????????? | | ????????????????????????# #?????????????????? | | ????????????????????????#@/!!!!#?????????????????? | | ????????????????????????## !^ ##?????????????????? | | ?????????????????????????# gg #??????????????????? | | ????????????????????????###%h###?????????????????? | | ????????????????????????# = #?????????????????? | | ??????????############### ###???????????????? | | ??????????# #???????????????? | | ??????????# #???????????????? | | ????????### #???????????????? | | ???????? #???????????????? | | ??????????# #???????????????? | | ??????????# #???????????????? | | ??????????# #???????????????? | | ??????????# #???????????????? | | ??????????# #???????????????? | | ??????????# #???????????????? | | ??????????# #???????????????? | | ??????????############## ########???????????????? | | ???????????????????????# #??????????????????????? | | ??????????????????????? ??????????????????????? | | ???????????????????????# ##?????????????????????? | | ???????????????????????# #??????????????????????? | | ???????????????????????# #??????????????????????? | | ???????????????????????? #??????????????????????? | | ???????????????????????? ??????????????????????? | +----------------------------------------------------+ Best States ------------- Heat Dissipation 25 Energy Generation 10 Energy Capacity 125 Matter Stores 300 Matter Capacity 300 Sight Range 16 Terrain Scan Density 10 Evasion (%) 40 Recoil Reduction 2 Item Schematics ----------------- None Robot Schematics ------------------ None Fabricated ------------ Nothing Alien Tech Used ----------------- None Achievements -------------- None Challenges ------------ None Game ------ Seed BombProjectionTerminator Manual? 0 Play Time 00:24:05 Cumulative 227.9 hours Start 2024.09.02 @ 15:01:29 End 2024.09.02 @ 15:32:43 Sessions 1 Manual Loads 0 Difficulty Rogue Special Mode None Game No. 89 Rogue 86 Adventurer 0 Explorer 3 Win Type - Total 3 Types 2/0/0/1/0/0/0/0/0 Lore% 29 Gallery% 63 Achievement% 51 Wizard Run 0 Options --------- Layout 2 ASCII 0 Keyboard 1 Movement Numpad Keybinds 0 Fullscreen 2 Font 24/Terminus Map View 76x44 Zoom Use 0% Tactical HUD 1 Map Filters NONE Filters NONE Steam 1 RUN: a71a8c92-7c24-47db-a061-d5759a3df8a2